bitfinex/quotes_BTCUSD_20251212
["timestamp","ask_amount","ask_price","bid_price","bid_amount"]
[1765526525089,0.05001839,92462.0,92461.0,0.22636741]
[1765526526416,0.05001839,92462.0,92461.0,0.21630741]
[1765526527207,0.04991024,92462.0,92461.0,0.21630741]
[1765526528844,0.04991024,92462.0,92459.0,0.22712769]
[1765526529076,0.08403549,92462.0,92457.0,0.22713235]
[1765526529432,0.01161,92463.0,92445.0,0.01081724]
[1765526529433,0.01081642,92452.0,92445.0,0.01081724]
[1765526529622,0.01081677,92449.0,92446.0,0.05943738]
[1765526530175,0.01161,92452.0,92449.0,0.01081677]
[1765526530395,0.044504,92450.0,92449.0,0.22715035]
[1765526530627,0.044504,92453.0,92452.0,0.01081642]
[1765526531683,0.05001839,92457.0,92456.0,0.22713503]
[1765526532230,0.05001839,92457.0,92454.0,0.01081618]
[1765526532788,0.05001839,92457.0,92454.0,0.22713812]
[1765526532950,0.05001839,92457.0,92456.0,0.21631911]
[1765526533150,0.05001839,92457.0,92454.0,0.22713812]
[1765526533576,0.05001839,92457.0,92454.0,0.22913812]
[1765526534625,0.05001839,92457.0,92454.0,0.01281618]
[1765526534838,0.05001839,92457.0,92454.0,0.01181618]
[1765526535666,0.06592839,92455.0,92454.0,0.001]
[1765526536105,0.08866839,92455.0,92454.0,0.001]
[1765526536311,0.08866839,92455.0,92454.0,0.002]
[1765526536485,0.09948446,92455.0,92452.0,0.01081642]
[1765526536684,0.06083469,92453.0,92450.0,0.01081665]
[1765526537752,0.05001839,92456.0,92453.0,0.0108163]
[1765526537934,0.05001839,92456.0,92454.0,0.001]
[1765526538183,0.05001839,92456.0,92453.0,0.22714064]
[1765526539038,0.05001839,92456.0,92454.0,0.001]
[1765526539239,0.05001839,92456.0,92454.0,0.002]
[1765526539484,0.05001839,92456.0,92454.0,0.001]
[1765526539688,0.05001839,92456.0,92453.0,0.22814074]
[1765526540027,0.05001839,92456.0,92453.0,0.22914074]
[1765526540765,0.05001839,92456.0,92453.0,0.22814074]
[1765526541075,0.05001839,92456.0,92454.0,0.001]
[1765526541489,0.05001839,92457.0,92454.0,0.2271384]
[1765526541987,0.06083422,92457.0,92454.0,0.01081618]
[1765526542400,0.06083422,92457.0,92454.0,0.01181618]
[1765526542589,0.27715268,92457.0,92454.0,0.002]
[1765526542789,0.06083446,92455.0,92451.0,0.01081654]
[1765526543013,0.27715744,92455.0,92454.0,0.001]
[1765526543362,0.31653744,92455.0,92454.0,0.001]
[1765526543955,0.31653744,92455.0,92454.0,0.002]
[1765526544388,0.31653744,92455.0,92452.0,0.01081642]
[1765526544582,0.31653744,92455.0,92454.0,0.001]
[1765526544867,0.29249744,92455.0,92454.0,0.001]
[1765526545851,0.33700144,92455.0,92454.0,0.001]
[1765526546026,0.36104144,92455.0,92454.0,0.001]
[1765526546433,0.13390239,92455.0,92454.0,0.002]
[1765526548274,0.16094257,92455.0,92454.0,0.002]
[1765526548706,0.10986239,92455.0,92454.0,0.002]
[1765526549312,0.09452239,92455.0,92454.0,0.002]
[1765526550573,0.05001839,92456.0,92454.0,0.002]
[1765526551511,0.01081642,92452.0,92446.0,0.01006]
[1765526551733,0.044504,92450.0,92448.0,0.01081689]
[1765526551943,0.044504,92450.0,92448.0,0.22715309]
[1765526552997,0.01081642,92452.0,92446.0,0.01006]
[1765526553250,0.044504,92445.0,92441.0,0.01081771]
[1765526553456,0.044504,92445.0,92442.0,0.05943785]
[1765526553870,0.044504,92445.0,92443.0,0.21634773]
[1765526554441,0.044504,92448.0,92447.0,0.010817]
[1765526556686,0.044504,92448.0,92447.0,0.012817]
[1765526556902,0.044504,92448.0,92447.0,0.010817]
[1765526557114,0.044504,92448.0,92447.0,0.013817]
[1765526560030,0.044504,92448.0,92447.0,0.003]
[1765526560232,0.09452239,92448.0,92447.0,0.003]
[1765526560437,0.11856239,92448.0,92447.0,0.003]
[1765526561272,0.09452239,92448.0,92447.0,0.003]
[1765526561812,0.13390239,92448.0,92447.0,0.003]
[1765526563000,0.10986239,92448.0,92447.0,0.002]
[1765526563181,0.05001839,92447.0,92445.0,0.01081724]
[1765526564351,0.05001839,92447.0,92445.0,0.01181724]
[1765526564616,0.05001839,92447.0,92445.0,0.01281724]
[1765526564827,0.05001839,92447.0,92445.0,0.22915995]
[1765526576925,0.044504,92448.0,92445.0,0.22915995]
[1765526576926,0.05001839,92455.0,92451.0,0.01081654]
[1765526577134,0.05001839,92455.0,92452.0,0.01081642]
[1765526577848,0.044504,92453.0,92452.0,0.01081642]
[1765526578224,0.09452239,92454.0,92453.0,0.21632613]
[1765526579502,0.01221,92455.0,92452.0,0.01081642]
[1765526579503,0.09452239,92453.0,92452.0,0.01081642]
[1765526579914,0.09452239,92449.0,92448.0,0.01081689]
[1765526580131,0.09452239,92448.0,92443.0,0.01093371]
[1765526580378,0.05001839,92446.0,92443.0,0.01093371]
[1765526581028,0.05001839,92446.0,92444.0,0.21634719]
[1765526582629,0.05001839,92446.0,92444.0,0.21834719]
[1765526582853,0.05001839,92446.0,92444.0,0.21934719]
[1765526583898,0.09452239,92448.0,92447.0,0.21634017]
[1765526584115,0.09452239,92448.0,92447.0,0.23172017]
[1765526584319,0.05001839,92448.0,92447.0,0.25444017]
[1765526584920,0.05001839,92448.0,92447.0,0.25544017]
[1765526585296,0.05001839,92448.0,92447.0,0.25644017]
[1765526586162,0.22851198,92464.0,92447.0,0.25644017]
[1765526586163,0.23932699,92464.0,92456.0,0.01081595]
[1765526586369,0.06083352,92463.0,92459.0,0.0108156]
[1765526586574,0.01081501,92464.0,92459.0,0.0108156]
[1765526586575,0.01081501,92464.0,92461.0,0.01081537]
[1765526586763,0.05001839,92463.0,92461.0,0.01081537]
[1765526587001,0.05001839,92463.0,92462.0,0.21630507]
[1765526587230,0.0108149,92465.0,92462.0,0.22712032]
[1765526587402,0.0108149,92465.0,92461.0,0.01081537]
[1765526587605,0.05001839,92462.0,92461.0,0.01081537]
[1765526587947,0.05001839,92463.0,92461.0,0.01081537]
[1765526588352,0.05401839,92463.0,92461.0,0.01081537]
[1765526588808,0.06083352,92463.0,92460.0,0.01081548]
[1765526589047,0.06083352,92463.0,92420.0,0.00199998]
[1765526589048,0.05001839,92458.0,92456.0,0.01081595]
[1765526589250,0.05001839,92458.0,92447.0,0.010817]
[1765526589251,0.05001839,92451.0,92447.0,0.010817]
[1765526589453,0.01081642,92452.0,92446.0,0.01081712]
[1765526589454,0.05001839,92447.0,92446.0,0.01081712]
[1765526589640,0.31086958,92444.0,92440.0,0.01006]
[1765526589844,0.32635958,92444.0,92439.0,0.01081794]
[1765526589988,0.32635958,92444.0,92440.0,0.01081782]
[1765526590187,0.32635958,92444.0,92439.0,0.22717678]
[1765526590388,0.32635958,92444.0,92443.0,0.21646577]
[1765526590389,0.05001839,92444.0,92443.0,0.21646577]
[1765526590658,0.05001839,92444.0,92443.0,0.23184577]
[1765526590970,0.05001839,92444.0,92443.0,0.25456577]
[1765526591717,0.05001839,92444.0,92443.0,0.25656577]
[1765526591920,0.05001839,92444.0,92443.0,0.21946577]
[1765526593797,0.05001839,92444.0,92443.0,0.25756577]
[1765526594016,0.05001839,92444.0,92443.0,0.23484577]
[1765526594240,0.05001839,92444.0,92443.0,0.21946577]
[1765526600479,0.05001839,92444.0,92443.0,0.25873577]
[1765526605193,0.05001839,92444.0,92443.0,0.23459577]
[1765526607419,0.05001839,92444.0,92443.0,0.25781577]
[1765526608449,0.05001839,92444.0,92443.0,0.23459577]
[1765526609115,0.05001839,92444.0,92443.0,0.21946577]
[1765526617429,0.05001839,92444.0,92443.0,0.23481577]
[1765526617681,0.05001839,92444.0,92443.0,0.25803577]
[1765526617990,0.05001839,92444.0,92443.0,0.23481577]
[1765526620052,0.05001839,92444.0,92443.0,0.25803577]
[1765526623626,0.01221,92457.0,92454.0,0.22713763]
[1765526623837,0.05001839,92456.0,92454.0,0.22713763]
[1765526624597,0.05001839,92456.0,92454.0,0.22713769]
[1765526625301,0.05001839,92456.0,92454.0,0.22713789]
[1765526625511,0.05101839,92456.0,92454.0,0.22713789]
[1765526625720,0.001,92456.0,92455.0,0.04863]
[1765526626159,0.001,92456.0,92455.0,0.02541]
[1765526626569,0.001,92456.0,92455.0,0.04809]
[1765526627036,0.001,92456.0,92455.0,0.01006]
[1765526627037,0.05101839,92456.0,92455.0,0.01006]
[1765526627175,0.09552239,92456.0,92455.0,0.01006]
[1765526627375,0.22713232,92458.0,92450.0,0.22639188]
[1765526627376,0.32165991,92455.0,92450.0,0.22639188]
[1765526627633,0.01081654,92451.0,92446.0,0.22640156]
[1765526627816,0.01081654,92451.0,92442.0,0.01081759]
[1765526627817,0.08915539,92447.0,92443.0,0.01093371]
[1765526628021,0.1238333,92447.0,92444.0,0.01081735]
[1765526628218,0.08915539,92447.0,92444.0,0.01081735]
[1765526628419,0.28266332,92445.0,92443.0,0.00011624]
[1765526628579,0.13490239,92444.0,92443.0,0.00011624]
[1765526630758,0.13490239,92444.0,92443.0,0.00111624]
[1765526630957,0.13490239,92444.0,92443.0,0.00211624]
[1765526633559,0.35124958,92444.0,92443.0,0.00211624]
[1765526638923,0.13490239,92444.0,92443.0,0.00211624]
[1765526639597,0.05001839,92444.0,92443.0,0.01217624]
[1765526639814,0.09452239,92444.0,92443.0,0.01217624]
[1765526640375,0.05001839,92444.0,92443.0,0.01217624]
[1765526641394,0.05001839,92444.0,92443.0,0.02734624]
[1765526641555,0.05001839,92444.0,92443.0,0.05002624]
[1765526641916,0.0361,92459.0,92443.0,0.05002624]
[1765526641917,0.044504,92462.0,92453.0,0.0108163]
[1765526642135,0.044504,92462.0,92454.0,0.01081618]
[1765526642467,0.01081548,92460.0,92457.0,0.01081583]
[1765526642706,0.06083399,92459.0,92456.0,0.01081595]
[1765526642912,0.05001839,92459.0,92456.0,0.01081595]
[1765526643114,0.05001839,92457.0,92453.0,0.0108163]
[1765526643660,0.06083446,92455.0,92452.0,0.01081642]
[1765526643858,0.06083446,92455.0,92448.0,0.02087689]
[1765526643859,0.09452239,92449.0,92448.0,0.02087689]
[1765526644095,0.09452239,92449.0,92448.0,0.01006]
[1765526645116,0.09452239,92449.0,92448.0,0.22639783]
[1765526646986,0.05001839,92449.0,92448.0,0.21633783]
[1765526647175,0.05001839,92449.0,92447.0,0.21633814]
[1765526647569,0.05001839,92448.0,92447.0,0.21633814]
[1765526647994,0.05001839,92452.0,92450.0,0.22714837]
[1765526648746,0.07705944,92452.0,92449.0,0.01081677]
[1765526649094,0.07705944,92452.0,92450.0,0.21633315]
[1765526649811,0.07805944,92452.0,92450.0,0.21633315]
[1765526650213,0.07805944,92452.0,92449.0,0.01081677]
[1765526650904,0.07805944,92452.0,92449.0,0.22715022]
[1765526651101,0.07705944,92452.0,92450.0,0.21633139]
[1765526651920,0.07705944,92452.0,92449.0,0.01081677]
[1765526652523,0.09452239,92450.0,92449.0,0.01081677]
[1765526652960,0.09452239,92444.0,92443.0,0.00011624]
[1765526653291,0.12170239,92444.0,92443.0,0.00011624]
[1765526653495,0.14578239,92444.0,92443.0,0.00011624]
[1765526654839,0.14578239,92444.0,92443.0,0.00111624]
[1765526655023,0.14578239,92444.0,92443.0,0.00211624]
[1765526655225,0.23175941,92444.0,92443.0,0.00211624]
[1765526655989,0.23175941,92444.0,92443.0,0.00111624]
[1765526656215,0.23175941,92444.0,92443.0,0.00011624]
[1765526656419,0.23175941,92444.0,92443.0,0.00211624]
[1765526660907,0.14578239,92444.0,92443.0,0.00211624]
[1765526661835,0.10540239,92444.0,92443.0,0.00211624]
[1765526663884,0.05001839,92444.0,92443.0,0.00211624]
[1765526664084,0.05001839,92444.0,92443.0,0.04295624]
[1765526664742,0.05001839,92444.0,92443.0,0.01865624]
[1765526666009,0.05001839,92444.0,92443.0,0.04295624]
[1765526666861,0.2907,92457.0,92443.0,0.0915765]
[1765526667060,0.2608091,92462.0,92443.0,0.0915765]
[1765526667061,0.05001839,92459.0,92456.0,0.02087595]
[1765526667292,0.01081548,92460.0,92457.0,0.01081583]
[1765526667494,0.01081548,92460.0,92456.0,0.02087595]
[1765526667701,0.05001839,92459.0,92457.0,0.01081583]
[1765526667902,0.05001839,92458.0,92456.0,0.01006]
[1765526668116,0.09452239,92456.0,92455.0,0.22713752]
[1765526668595,0.045504,92457.0,92456.0,0.01081595]
[1765526668755,0.044504,92457.0,92456.0,0.01081595]
[1765526669516,0.044504,92456.0,92455.0,0.01081607]
[1765526670553,0.05001839,92458.0,92456.0,0.21631911]
[1765526670752,0.05001839,92455.0,92449.0,0.01081677]
[1765526670929,0.05001839,92453.0,92449.0,0.01081677]
[1765526671130,0.06083434,92456.0,92452.0,0.01081642]
[1765526671336,0.06083434,92456.0,92453.0,0.0108163]
[1765526671509,0.05001839,92456.0,92453.0,0.0108163]
[1765526671865,0.05001839,92456.0,92455.0,0.001]
[1765526672249,0.05001839,92456.0,92453.0,0.0108163]
[1765526672475,0.05001839,92456.0,92453.0,0.0118163]
[1765526672900,0.05001839,92456.0,92453.0,0.0108163]
[1765526673138,0.05001839,92456.0,92455.0,0.001]
[1765526674391,0.06083434,92456.0,92453.0,0.0108163]
[1765526674662,0.06083434,92456.0,92453.0,0.0118163]
[1765526675069,0.06083434,92456.0,92453.0,0.0108163]
[1765526675272,0.27715345,92456.0,92455.0,0.001]
[1765526675648,0.06083434,92456.0,92455.0,0.001]
[1765526676026,0.06083434,92456.0,92453.0,0.0108163]
[1765526676368,0.044504,92455.0,92453.0,0.0118163]
[1765526677281,0.05001839,92454.0,92453.0,0.001]
[1765526677733,0.05001839,92454.0,92451.0,0.22714683]
[1765526678257,0.0108163,92453.0,92445.0,0.21634457]
[1765526678464,0.0108163,92453.0,92446.0,0.22640022]
[1765526678465,0.05001839,92448.0,92446.0,0.22640022]
[1765526678753,0.05001839,92448.0,92446.0,0.01006]
[1765526679127,0.05001839,92449.0,92447.0,0.010817]
[1765526679324,0.05001839,92449.0,92447.0,0.22715545]
[1765526679654,0.05001839,92451.0,92449.0,0.21633549]
[1765526679997,0.09452239,92450.0,92449.0,0.22715226]
[1765526681651,0.09452239,92450.0,92449.0,0.22815226]
[1765526682060,0.09452239,92450.0,92449.0,0.01181677]
[1765526682266,0.09452239,92450.0,92449.0,0.01281677]
[1765526684638,0.09452239,92450.0,92449.0,0.002]
[1765526685598,0.09452239,92450.0,92449.0,0.21833549]
[1765526688065,0.09452239,92450.0,92449.0,0.002]
[1765526688745,0.05001839,92450.0,92449.0,0.002]
[1765526692033,0.05001839,92450.0,92449.0,0.01206]
[1765526692239,0.05001839,92450.0,92449.0,0.02846]
[1765526692421,0.05001839,92450.0,92449.0,0.05184]
[1765526692666,0.05001839,92450.0,92449.0,0.10046026]
[1765526696204,0.05001839,92450.0,92449.0,0.05184]
[1765526698780,0.05001839,92450.0,92449.0,0.10046026]
[1765526700348,0.05001839,92450.0,92449.0,0.07708026]
[1765526700556,0.05001839,92450.0,92449.0,0.10046026]
[1765526701191,0.05001839,92450.0,92449.0,0.002]
[1765526701401,0.14416669,92450.0,92449.0,0.002]
[1765526701619,0.17120833,92450.0,92449.0,0.002]
[1765526701825,0.19451833,92450.0,92449.0,0.002]
[1765526702244,0.17120833,92450.0,92449.0,0.002]
[1765526702845,0.13674403,92450.0,92449.0,0.002]
[1765526705655,0.10970239,92450.0,92449.0,0.002]
[1765526705881,0.09452239,92450.0,92449.0,0.002]
[1765526706216,0.05001839,92450.0,92449.0,0.002]
[1765526706430,0.09452239,92450.0,92449.0,0.002]
[1765526709088,0.12156403,92450.0,92449.0,0.002]
[1765526709639,0.09452239,92450.0,92449.0,0.002]
[1765526710063,0.31085554,92450.0,92449.0,0.002]
[1765526710276,0.3908508,92450.0,92449.0,0.002]
[1765526710510,0.34934554,92450.0,92449.0,0.002]
[1765526711177,0.34934554,92450.0,92449.0,0.001]
[1765526712632,0.09452239,92448.0,92446.0,0.01081712]
[1765526713047,0.09452239,92448.0,92444.0,0.01081735]
[1765526713240,0.05001839,92446.0,92443.0,0.01093371]
[1765526713436,0.27717986,92446.0,92443.0,0.00011624]
[1765526713859,0.05001839,92446.0,92444.0,0.21634719]
[1765526714063,0.05001839,92446.0,92443.0,0.01093371]
[1765526714698,0.05001839,92446.0,92443.0,0.01293371]
[1765526714879,0.05001839,92446.0,92443.0,0.22928151]
[1765526715635,0.06083551,92446.0,92443.0,0.00211624]
[1765526715837,0.06083551,92446.0,92443.0,0.00311624]
[1765526716025,0.09452239,92444.0,92443.0,0.00311624]
[1765526716422,0.05001839,92444.0,92443.0,0.00311624]
[1765526716760,0.19498848,92444.0,92443.0,0.00311624]
[1765526716880,0.19498848,92444.0,92443.0,0.00011624]
[1765526717084,0.13462239,92444.0,92443.0,0.00111624]
[1765526717307,0.13462239,92444.0,92443.0,0.00311624]
[1765526717507,0.11100239,92444.0,92443.0,0.00111624]
[1765526717710,0.09452239,92444.0,92443.0,0.00211624]
[1765526718592,0.09452239,92444.0,92443.0,0.00111624]
[1765526718943,0.09452239,92444.0,92443.0,0.00211624]
[1765526733650,0.15460599,92444.0,92443.0,0.00211624]
[1765526734018,0.11450599,92444.0,92443.0,0.00211624]
[1765526734767,0.09452239,92444.0,92443.0,0.00211624]
[1765526735361,0.12075098,92444.0,92443.0,0.00211624]
[1765526735708,0.09452239,92444.0,92443.0,0.00211624]
[1765526736750,0.09452239,92444.0,92443.0,0.21846577]
[1765526736968,0.05001839,92444.0,92443.0,0.25706577]
[1765526739402,0.05001839,92444.0,92443.0,0.23434577]
[1765526739556,0.05001839,92444.0,92443.0,0.21846577]
[1765526740573,0.09452239,92444.0,92443.0,0.21846577]
[1765526742212,0.09452239,92444.0,92443.0,0.00211624]
[1765526743652,0.32734958,92444.0,92443.0,0.00211624]
[1765526743862,0.35096958,92444.0,92443.0,0.00211624]
[1765526747234,0.13462239,92444.0,92443.0,0.00211624]
[1765526747459,0.16166578,92444.0,92443.0,0.00211624]
[1765526750962,0.37801297,92444.0,92443.0,0.00211624]
[1765526751160,0.35096958,92444.0,92443.0,0.00211624]
[1765526752040,0.421181,92444.0,92443.0,0.00211624]
[1765526753446,0.13462239,92444.0,92443.0,0.00211624]
[1765526753811,0.16166578,92444.0,92443.0,0.00211624]
[1765526759174,0.09452239,92444.0,92443.0,0.00211624]
[1765526760166,0.05001839,92444.0,92443.0,0.00211624]
[1765526761641,0.05001839,92444.0,92443.0,0.01832624]
[1765526762168,0.09452239,92444.0,92443.0,0.00211624]
[1765526766189,0.05001839,92444.0,92443.0,0.04223624]
[1765526769640,0.05001839,92458.0,92456.0,0.01081595]
[1765526769930,0.27714907,92458.0,92453.0,0.0208763]
[1765526770246,0.06083411,92458.0,92454.0,0.01081618]
[1765526770425,0.01081572,92458.0,92454.0,0.01081618]
[1765526770833,0.05001839,92457.0,92454.0,0.01081618]
[1765526771027,0.06083422,92457.0,92453.0,0.0208763]
[1765526771249,0.05001839,92457.0,92454.0,0.01081618]
[1765526771854,0.05001839,92457.0,92455.0,0.01081607]
[1765526772233,0.05201839,92457.0,92455.0,0.01081607]
[1765526772631,0.06183411,92458.0,92455.0,0.01081607]
[1765526772835,0.05001839,92457.0,92455.0,0.01081607]
[1765526773042,0.05301839,92457.0,92455.0,0.01081607]
[1765526773222,0.05501839,92457.0,92455.0,0.01081607]
[1765526773425,0.06383422,92457.0,92454.0,0.01081618]
[1765526773876,0.06383422,92457.0,92455.0,0.001]
[1765526774087,0.15577925,92457.0,92454.0,0.01081618]
[1765526774261,0.15277925,92457.0,92454.0,0.01081618]
[1765526774469,0.15277925,92457.0,92455.0,0.001]
[1765526774673,0.17773925,92457.0,92455.0,0.001]
[1765526774990,0.044504,92456.0,92455.0,0.001]
[1765526775570,0.09452239,92455.0,92454.0,0.01081618]
[1765526775997,0.05001839,92455.0,92454.0,0.01181618]
[1765526776144,0.05001839,92455.0,92454.0,0.01081618]
[1765526776987,0.05001839,92455.0,92454.0,0.01181618]
[1765526777190,0.15682887,92455.0,92454.0,0.001]
[1765526777442,0.17160905,92455.0,92454.0,0.001]
[1765526778551,0.07705857,92455.0,92454.0,0.001]
[1765526778752,0.05001839,92455.0,92454.0,0.001]
[1765526782872,0.05001839,92455.0,92454.0,0.21732379]
[1765526784308,0.05001839,92455.0,92454.0,0.001]
[1765526784606,0.05001839,92455.0,92454.0,0.21732379]
[1765526786411,0.05001839,92455.0,92454.0,0.001]
[1765526786988,0.01226,92473.0,92465.0,0.0108149]
[1765526787167,0.00023029,92476.0,92473.0,0.01081396]
[1765526787367,0.01081373,92475.0,92470.0,0.02087431]
[1765526787626,0.01081373,92475.0,92467.0,0.01081466]
[1765526787627,0.05001839,92471.0,92467.0,0.01081466]
[1765526787798,0.05001839,92471.0,92468.0,0.22710365]
[1765526787976,0.06083247,92472.0,92468.0,0.01081455]
[1765526788176,0.06083247,92472.0,92468.0,0.22710532]
[1765526788519,0.27750399,92472.0,92468.0,0.01081455]
[1765526788748,0.27750399,92472.0,92469.0,0.01081443]
[1765526788749,0.06122044,92472.0,92469.0,0.01081443]
[1765526788908,0.05040636,92472.0,92469.0,0.01081443]
[1765526789901,0.00038797,92472.0,92470.0,0.21628636]
[1765526790725,0.00038797,92472.0,92469.0,0.22710134]
[1765526790931,0.00038797,92472.0,92471.0,0.21628402]
[1765526791319,0.05001839,92471.0,92470.0,0.001]
[1765526791533,0.11621389,92471.0,92470.0,0.002]
[1765526791775,0.11621389,92471.0,92468.0,0.01081455]
[1765526792089,0.12864096,92471.0,92467.0,0.01081466]
[1765526792320,0.01081431,92470.0,92467.0,0.01081466]
[1765526792476,0.05001839,92468.0,92465.0,0.0108149]
[1765526792678,0.05001839,92468.0,92465.0,0.22711091]
[1765526793697,0.05001839,92470.0,92466.0,0.2271084]
[1765526794417,0.05001839,92470.0,92468.0,0.001]
[1765526794762,0.05001839,92470.0,92467.0,0.01081466]
[1765526794987,0.05001839,92470.0,92467.0,0.01281466]
[1765526795229,0.05001839,92470.0,92467.0,0.01081466]
[1765526795386,0.0608327,92470.0,92467.0,0.01081466]
[1765526795615,0.05001839,92470.0,92468.0,0.002]
[1765526795810,0.05001839,92470.0,92467.0,0.22710607]
[1765526796011,0.05001839,92470.0,92469.0,0.26490896]
[1765526796927,0.05001839,92470.0,92467.0,0.23110607]
[1765526797077,0.05001839,92470.0,92469.0,0.2162887]
[1765526797679,0.05001839,92470.0,92469.0,0.2172887]
[1765526798114,0.05001839,92470.0,92469.0,0.2182887]
[1765526805383,0.08917839,92470.0,92469.0,0.002]
[1765526805779,0.06649839,92470.0,92469.0,0.002]
[1765526809027,0.05001839,92470.0,92469.0,0.002]
[1765526812443,0.08806839,92470.0,92469.0,0.002]
[1765526813030,0.06511839,92470.0,92469.0,0.002]
[1765526814132,0.08806839,92470.0,92469.0,0.002]
[1765526815018,0.06511839,92470.0,92469.0,0.002]
[1765526817025,0.08806839,92470.0,92469.0,0.002]
[1765526817601,0.06511839,92470.0,92469.0,0.002]
[1765526817841,0.06511839,92470.0,92469.0,0.2182887]
[1765526818017,0.06511839,92470.0,92469.0,0.002]
[1765526820267,0.10962239,92470.0,92469.0,0.002]
[1765526820773,0.13257239,92470.0,92469.0,0.002]
[1765526820995,0.10962239,92470.0,92469.0,0.002]
[1765526823199,0.08806839,92470.0,92469.0,0.002]
[1765526823658,0.24526803,92470.0,92469.0,0.002]
[1765526823873,0.21823224,92470.0,92469.0,0.002]
[1765526824492,0.21823224,92470.0,92469.0,0.001]
[1765526824931,0.21823224,92470.0,92469.0,0.002]
[1765526825506,0.21823224,92470.0,92469.0,0.001]
[1765526825702,0.21823224,92470.0,92469.0,0.002]
[1765526825999,0.21823224,92470.0,92469.0,0.001]
[1765526826200,0.05001839,92454.0,92452.0,0.01081642]
[1765526826404,0.10513239,92453.0,92452.0,0.01081642]
[1765526826605,0.12023239,92453.0,92452.0,0.01081642]
[1765526826808,0.14318239,92453.0,92452.0,0.01081642]
[1765526827220,0.05001839,92452.0,92451.0,0.01081654]
[1765526827369,0.13257239,92452.0,92449.0,0.01081677]
[1765526827566,0.13257239,92452.0,92449.0,0.22715226]
[1765526827567,0.07694839,92450.0,92449.0,0.22715226]
[1765526828211,0.06184839,92450.0,92449.0,0.22715226]
[1765526829279,0.05001839,92452.0,92451.0,0.21633081]
[1765526830700,0.05001839,92452.0,92451.0,0.21933081]
[1765526830932,0.05001839,92452.0,92451.0,0.22233081]
[1765526831883,0.05001839,92452.0,92451.0,0.23812081]
[1765526832084,0.01242707,92471.0,92468.0,0.01081455]
[1765526832489,0.05001839,92470.0,92468.0,0.01081455]
[1765526833785,0.05001839,92470.0,92468.0,0.22710391]
[1765526834800,0.05001839,92470.0,92468.0,0.01081455]
[1765526835563,0.05001839,92470.0,92468.0,0.01281455]
[1765526837996,0.05001839,92470.0,92468.0,0.22910365]
[1765526838373,0.05001839,92470.0,92468.0,0.01281455]
[1765526839587,0.2313087,92469.0,92468.0,0.002]
[1765526839787,0.2551887,92469.0,92468.0,0.002]
[1765526840003,0.30520709,92469.0,92468.0,0.002]
[1765526840248,0.34971109,92469.0,92468.0,0.002]
[1765526841232,0.34971109,92469.0,92468.0,0.001]
[1765526841445,0.34971109,92469.0,92468.0,0.002]
[1765526841657,0.34971109,92469.0,92468.0,0.001]
[1765526841898,0.72662612,92469.0,92468.0,0.002]
[1765526842095,0.72662612,92469.0,92468.0,0.001]
[1765526842296,0.05001839,92448.0,92446.0,0.01081712]
[1765526842544,0.05001839,92448.0,92445.0,0.01081724]
[1765526842545,0.06083528,92448.0,92445.0,0.01081724]
[1765526843069,0.05001839,92448.0,92445.0,0.22716016]
[1765526843723,0.05001839,92449.0,92447.0,0.010817]
[1765526843918,0.06083516,92449.0,92445.0,0.01481724]
[1765526844142,0.01081689,92448.0,92445.0,0.004]
[1765526844496,0.01081689,92448.0,92446.0,0.003]
[1765526844884,0.26635856,92447.0,92446.0,0.003]
[1765526845091,0.26635856,92447.0,92430.0,0.01081899]
[1765526845092,0.044504,92436.0,92430.0,0.01081899]
[1765526845290,0.06176839,92435.0,92434.0,0.21637059]
[1765526845512,0.05001839,92435.0,92434.0,0.21637059]
[1765526846369,0.05001839,92435.0,92434.0,0.21648683]
[1765526846607,0.05001839,92435.0,92434.0,0.21948683]
[1765526847584,0.05001839,92435.0,92434.0,0.22248683]
[1765526848307,0.26638664,92435.0,92434.0,0.00611624]
[1765526848545,0.37526326,92435.0,92434.0,0.00611624]
[1765526848751,0.41976726,92435.0,92434.0,0.00611624]
[1765526848961,0.42138013,92435.0,92434.0,0.00611624]
[1765526849813,0.42138013,92435.0,92434.0,0.00311624]
[1765526849997,0.42338013,92435.0,92434.0,0.00311624]
[1765526850393,0.42338013,92435.0,92434.0,0.00011624]
[1765526850919,0.42638013,92435.0,92434.0,0.00011624]
[1765526853259,0.36815351,92435.0,92434.0,0.00011624]
[1765526866303,0.65885351,92435.0,92434.0,0.00011624]
[1765526867120,0.65585351,92435.0,92434.0,0.00011624]
[1765526867321,0.65785351,92435.0,92434.0,0.00011624]
[1765526867733,0.66085351,92435.0,92434.0,0.00011624]
[1765526867934,0.77136113,92435.0,92434.0,0.00011624]
[1765526869340,0.78144843,92435.0,92434.0,0.00011624]
[1765526869547,0.05001839,92399.0,92387.0,0.02298]
[1765526869749,0.2907,92422.0,92386.0,0.01082415]
[1765526869750,0.06084183,92392.0,92386.0,0.01082415]
[1765526869936,0.05001839,92392.0,92388.0,0.21647652]
[1765526870137,0.05001839,92392.0,92390.0,0.01082368]
[1765526870545,0.05001839,92392.0,92390.0,0.2272971]
[1765526870935,0.05001839,92392.0,92390.0,0.2502771]
[1765526872434,0.05001839,92392.0,92390.0,0.2532771]
[1765526872614,0.05001839,92392.0,92390.0,0.2562771]
[1765526874515,0.05001839,92392.0,92391.0,0.03917]
[1765526874679,0.05001839,92392.0,92391.0,0.01619]
[1765526875688,0.05001839,92392.0,92391.0,0.01919]
[1765526876027,0.05001839,92392.0,92391.0,0.04517]
[1765526876175,0.05001839,92400.0,92399.0,0.21645255]
[1765526876375,0.05001839,92402.0,92400.0,0.01082251]
[1765526877586,0.05001839,92403.0,92401.0,0.01082239]
[1765526878354,0.06084054,92403.0,92400.0,0.01082251]
[1765526878557,0.06084054,92403.0,92400.0,0.01282251]
[1765526878909,0.06084054,92403.0,92401.0,0.001]
[1765526879307,0.06084054,92403.0,92400.0,0.01082251]
[1765526879690,0.06084054,92403.0,92401.0,0.002]
[1765526880126,0.06084054,92403.0,92400.0,0.01182251]
[1765526880453,0.06084054,92403.0,92400.0,0.001]
[1765526880611,0.06084054,92403.0,92400.0,0.22827248]
[1765526880812,0.05001839,92403.0,92400.0,0.22727248]
[1765526881147,0.05001839,92403.0,92401.0,0.01082239]
[1765526881350,0.05001839,92403.0,92401.0,0.01182239]
[1765526881868,0.05001839,92403.0,92402.0,0.21644553]
[1765526882651,0.01153,92408.0,92404.0,0.21644084]
[1765526882964,0.05001839,92409.0,92407.0,0.22649159]
[1765526883110,0.05001839,92411.0,92409.0,0.22725028]
[1765526883334,0.22722815,92419.0,92411.0,0.01619]
[1765526883538,0.21641002,92418.0,92412.0,0.2326121]
[1765526883745,0.044504,92416.0,92414.0,0.01082087]
[1765526883941,0.05001839,92415.0,92414.0,0.01082087]
[1765526884133,0.05001839,92415.0,92413.0,0.01082098]